bitfinex-derivatives/quotes_ETHF0:USTF0_20240830
["timestamp","ask_amount","ask_price","bid_price","bid_amount"]
[1725037309931,0.40624,2461.7,2461.4,4.67531792]
[1725037310135,8.07719,2462.0,2461.7,0.40623]
[1725037310322,8.07719,2462.0,2461.9,0.40621]
[1725037310323,4.161,2462.0,2461.9,0.40621]
[1725037310521,3.6826,2462.0,2461.9,0.40621]
[1725037311230,3.2078,2462.0,2461.9,0.40621]
[1725037312428,3.2078,2462.0,2461.9,4.46781]
[1725037312627,3.2078,2462.4,2462.3,0.40613]
[1725037313029,3.91611,2462.5,2462.3,0.40613]
[1725037313331,3.91612,2462.5,2462.3,0.40613]
[1725037313526,0.40612,2462.4,2462.2,0.40615]
[1725037313832,3.51,2462.5,2462.4,0.40612]
[1725037314333,7.5708,2462.5,2462.3,0.40613]
[1725037314636,3.51,2462.5,2462.4,0.40612]
[1725037314932,3.51,2462.5,2462.1,1.47883]
[1725037314933,3.91611,2462.5,2462.3,0.40613]
[1725037315229,0.5032,2462.6,2462.4,0.40612]
[1725037315618,0.9093,2462.6,2462.4,0.40612]
[1725037315822,0.5032,2462.6,2462.5,0.40611]
[1725037316136,0.5032,2462.6,2462.4,0.40611]
[1725037316428,0.40609,2462.7,2462.5,0.40611]
[1725037316630,0.40609,2462.7,2462.2,1.01539]
[1725037316631,3.2078,2462.8,2462.7,0.40607]
[1725037317727,0.00609001,2463.0,2462.9,0.40604]
[1725037318224,0.00609001,2463.0,2462.9,4.46604]
[1725037318225,0.00226612,2463.0,2462.9,4.46604]
[1725037318827,0.00226612,2463.0,2462.9,5.48115]
[1725037320229,0.00226612,2463.0,2462.9,4.46604]
[1725037320439,0.40604,2462.9,2462.8,1.06122792]
[1725037320731,0.40606,2462.8,2462.7,0.0038239]
[1725037320930,8.99201,2462.8,2462.7,0.0038239]
[1725037321133,18.28165463,2462.8,2462.7,0.0038239]
[1725037321323,12.28165463,2462.8,2462.7,0.0038239]
[1725037321724,0.9643,2462.9,2462.7,0.4098939]
[1725037322124,0.9643,2462.9,2462.8,0.40606]
[1725037322331,0.00226612,2463.0,2462.7,0.0038239]
[1725037322641,0.00226612,2463.0,2462.9,1.42115]
[1725037322831,0.00226612,2463.0,2462.9,2.48237792]
[1725037323027,0.00226612,2463.0,2462.9,6.54237792]
[1725037324134,0.40591,2463.7,2463.0,1.01506]
[1725037324325,0.4922,2463.8,2463.3,3.2078]
[1725037324528,0.8981,2463.8,2463.6,0.40592]
[1725037324835,0.8981,2463.8,2463.2,0.40599]
[1725037324836,9.1143445,2463.7,2463.2,0.40599]
[1725037325032,0.40595,2463.5,2463.2,0.40598]
[1725037325234,0.40595,2463.5,2463.1,1.99190201]
[1725037325235,0.40595,2463.5,2463.3,0.40597]
[1725037325436,0.4839,2463.6,2463.1,1.99190201]
[1725037325437,0.40594,2463.6,2463.1,1.99190201]
[1725037325734,4.53089001,2463.7,2463.2,0.40598]
[1725037325935,0.40595,2463.5,2463.3,0.40597]
[1725037326238,4.92136227,2463.6,2463.3,0.40597]
[1725037326633,3.51609001,2463.7,2463.4,0.40595]
[1725037326634,3.92201001,2463.7,2463.4,0.40595]
[1725037326935,3.92201001,2463.7,2463.1,1.99190201]
[1725037326936,0.00609001,2463.7,2463.6,0.40593]
[1725037328842,0.00609001,2463.7,2463.2,9.27885201]
[1725037329025,7.91930468,2463.7,2463.2,3.6941]
[1725037329230,0.40594,2463.6,2463.4,0.40596]
[1725037329633,0.40594,2463.5,2463.3,0.40596]
[1725037329826,0.40594,2463.6,2463.4,0.40596]
[1725037330027,4.81522468,2463.7,2463.5,0.40594]
[1725037330231,0.40593,2463.6,2463.4,0.40595]
[1725037330632,0.40594,2463.5,2463.3,0.40596]
[1725037330827,0.40597,2463.3,2463.2,3.2078]
[1725037331034,0.40599,2463.3,2463.1,0.406]
[1725037331228,0.4912,2463.2,2463.1,0.406]
[1725037331628,0.87535,2463.5,2463.3,0.40596]
[1725037331826,0.4694,2463.5,2463.4,0.40596]
[1725037332034,3.6736,2463.6,2463.3,0.40596]
[1725037332337,0.40595,2463.5,2463.3,0.40596]
[1725037333142,4.32518677,2463.4,2463.3,0.40597]
[1725037333331,4.73114677,2463.4,2463.3,0.40597]
[1725037333641,8.38438677,2463.4,2463.3,0.40597]
[1725037334134,4.32518677,2463.4,2463.3,0.40597]
[1725037334437,40.96645576,2463.7,2463.5,0.40593]
[1725037334438,0.00609001,2463.7,2463.5,0.40593]
[1725037334633,0.00609001,2463.7,2463.3,0.89207]
[1725037334634,0.4776,2463.6,2463.3,0.89207]
[1725037334841,5.42787711,2463.6,2463.4,0.40596]
[1725037335348,5.02194711,2463.6,2463.5,0.40594]
[1725037335632,5.02194711,2463.6,2463.3,0.4861]
[1725037335633,5.02194711,2463.6,2463.4,0.89405]
[1725037335835,5.02194711,2463.6,2463.5,0.40594]
[1725037336026,5.42787711,2463.6,2463.4,0.89405]
[1725037336231,5.02194711,2463.6,2463.4,0.89405]
[1725037336432,5.02194711,2463.6,2463.5,0.40594]
[1725037336433,0.4776,2463.6,2463.5,0.40594]
[1725037336731,0.00609001,2463.7,2463.6,0.40593]
[1725037338936,0.00609001,2463.7,2463.6,12.19775]
[1725037339249,0.61243677,2464.6,2464.1,1.01461]
[1725037339542,3.2078,2464.9,2464.8,0.40573]
[1725037339739,7.67031,2464.9,2464.7,0.40574]
[1725037339930,7.73416636,2464.9,2464.8,0.40573]
[1725037340336,3.2078,2464.9,2464.8,0.40573]
[1725037340844,0.40574,2464.7,2464.6,0.00609001]
[1725037341233,0.4677,2464.8,2464.6,0.00609001]
[1725037341435,3.2078,2464.9,2464.8,0.40573]
[1725037342239,3.2078,2464.9,2464.6,0.00609001]
[1725037342434,0.5062,2465.0,2464.6,0.00609001]
[1725037342638,0.00609001,2465.1,2464.9,0.40571]
[1725037342833,0.00609001,2465.1,2464.7,0.4851]
[1725037343037,0.00609001,2465.1,2464.9,0.4057]
[1725037344541,0.00609001,2465.1,2465.0,0.40569]
[1725037344740,0.00609001,2465.1,2464.8,3.2078]
[1725037345134,0.4057,2465.0,2464.8,3.2078]
[1725037345446,0.00609001,2465.1,2464.8,3.2078]
[1725037345648,0.00609001,2465.1,2465.0,0.40569]
[1725037346845,0.00609001,2465.1,2464.8,3.2078]
[1725037346846,4.46857001,2465.1,2464.8,3.2078]
[1725037347047,0.41178001,2465.1,2464.8,3.2078]
[1725037347543,0.00609001,2465.1,2464.8,3.61353]
[1725037347739,0.00609001,2465.1,2465.0,0.40569]
[1725037348346,3.2078,2465.8,2465.1,1.0142]
[1725037348548,0.40555,2465.9,2465.5,3.2078]
[1725037348746,0.40555,2465.9,2465.5,3.7118]
[1725037348943,0.40559,2465.7,2465.2,3.7149]
[1725037349244,7.5387157,2465.8,2465.2,3.7149]
[1725037349445,0.00609001,2465.7,2465.2,3.7149]
[1725037349749,0.40564,2465.4,2465.2,3.2078]
[1725037349951,5.48359949,2465.6,2465.2,3.61346]
[1725037350158,0.4933,2465.6,2465.2,3.2078]
[1725037350447,0.4933,2465.6,2465.2,3.61345]
[1725037350448,0.4859,2465.5,2465.2,3.61345]
[1725037350856,0.4859,2465.5,2465.2,3.2078]
[1725037351055,4.22301409,2465.4,2465.0,4.56369]
[1725037351251,4.62865409,2465.4,2465.0,4.56369]
[1725037351444,0.4859,2465.5,2465.1,0.40567]
[1725037351445,0.89152,2465.5,2465.1,0.40567]
[1725037351647,0.4859,2465.5,2465.1,3.61347]
[1725037351845,0.4859,2465.5,2465.2,0.40566]
[1725037352050,0.4859,2465.5,2465.1,3.2078]
[1725037352553,0.4859,2465.5,2465.2,0.40566]
[1725037353552,0.4859,2465.5,2465.3,0.40564]
[1725037353946,0.4859,2465.5,2465.0,7.3658]
[1725037354148,0.90033,2465.4,2465.0,7.3658]
[1725037354347,0.90033,2465.4,2465.1,0.40568]
[1725037354954,0.90033,2465.4,2465.0,7.77148]
[1725037355560,0.40565,2465.3,2465.0,7.77148]
[1725037355756,0.90034,2465.4,2465.0,3.61348]
[1725037355958,0.40565,2465.3,2465.0,3.61348]
[1725037356162,0.90034,2465.4,2465.0,3.61348]
[1725037356458,0.40568,2465.1,2465.0,3.2078]
[1725037356657,4.666555,2465.3,2464.8,5.1842]
[1725037356873,0.40567,2465.2,2464.9,0.4057]
[1725037357060,5.072215,2465.3,2465.0,0.40569]
[1725037357363,0.4859,2465.5,2464.9,3.2078]
[1725037357564,0.89152,2465.5,2465.2,0.40565]
[1725037357766,0.89152,2465.5,2465.3,0.4788]
[1725037358057,0.4859,2465.5,2465.3,0.4788]
[1725037358262,0.4859,2465.5,2465.3,0.88444]
[1725037358459,0.4859,2465.5,2465.3,0.4788]
[1725037358460,0.89152,2465.5,2465.3,0.4788]
[1725037358768,3.2078,2465.6,2465.5,0.40561]
[1725037359058,3.2078,2465.6,2465.4,1.38892]
[1725037359264,3.2078,2465.6,2465.5,0.40561]
[1725037360654,3.2078,2465.6,2465.4,0.9833]
[1725037360853,3.2078,2465.6,2465.4,1.38892]
[1725037361053,3.2078,2465.6,2465.5,0.40561]
[1725037361259,3.2078,2465.6,2465.4,1.38891]
[1725037361460,3.6134,2465.6,2465.4,1.38891]
[1725037361881,3.6134,2465.6,2465.4,1.38892]
[1725037362556,1.01404,2465.5,2465.3,0.4788]
[1725037362861,0.91073,2465.4,2465.3,0.4788]
[1725037363468,0.40565,2465.3,2465.1,4.158]
[1725037363669,0.40566,2465.2,2465.1,4.158]
[1725037363865,0.40566,2465.3,2465.1,4.56367]
[1725037364064,0.40566,2465.2,2465.1,4.158]
[1725037364671,3.2078,2465.6,2465.1,4.158]
[1725037364857,0.40563,2465.4,2465.2,3.61345]
[1725037365167,3.61341,2465.6,2465.4,0.40562]
[1725037366061,3.6134,2465.6,2465.2,3.2078]
[1725037366263,3.6134,2465.6,2465.4,0.40562]
[1725037366464,3.2078,2465.6,2465.5,0.40561]
[1725037366659,3.2078,2465.6,2465.3,3.51]
[1725037366865,3.2078,2465.6,2465.5,0.40561]
[1725037367073,0.00609001,2465.7,2465.6,0.4056]
[1725037367367,0.00609001,2465.7,2465.6,0.8733]
[1725037369977,0.00609001,2465.7,2465.6,11.9433]
[1725037370676,0.00609001,2465.7,2465.6,0.4677]
[1725037370974,0.00609001,2465.7,2465.6,0.8733]
[1725037371367,0.00609001,2465.7,2465.6,4.9293]
[1725037371980,0.00609001,2465.7,2465.6,5.9433]
[1725037372775,0.00609001,2465.7,2465.6,4.9293]
[1725037374471,0.00609001,2465.7,2465.6,11.9433]
[1725037375385,0.00609001,2465.7,2465.6,12.9573]
[1725037375572,0.00151258,2465.7,2465.6,12.9573]
[1725037376586,3.7013,2466.2,2466.1,0.40551]
[1725037377377,3.2078,2467.3,2466.1,13.263]
[1725037377675,0.00609001,2466.9,2466.8,5.6402]
[1725037377878,0.40536,2467.1,2467.0,0.40537]
[1725037378177,4.4210452,2467.7,2467.1,0.40534]
[1725037378178,1.01322,2467.5,2467.1,0.40534]
[1725037378376,1.01322,2467.5,2466.8,3.7059]
[1725037378574,0.40533,2467.2,2467.1,0.40534]
[1725037378770,0.40533,2467.3,2467.2,0.40533]
[1725037379073,5.5185127,2467.4,2466.8,7.2159]
[1725037379270,0.4861,2467.2,2466.6,0.86442]
[1725037379469,1.01342,2467.0,2466.6,0.459]
[1725037379672,4.65788799,2467.1,2466.5,3.21389001]
[1725037379879,4.47474445,2466.9,2466.5,3.21389001]
[1725037380083,1.01344,2467.0,2466.5,3.21389001]
[1725037380271,0.40543,2466.7,2466.5,3.21389001]
[1725037380884,0.40551,2466.2,2465.9,0.40554]
[1725037381076,0.40547,2466.4,2465.8,7.1682]
[1725037381372,0.40548,2466.4,2466.0,0.40552]
[1725037381568,8.37156999,2466.6,2466.0,0.40552]
[1725037381569,5.16376999,2466.6,2466.0,3.51]
[1725037381766,0.00609001,2466.5,2466.3,0.40547]
[1725037382180,0.00609001,2466.5,2466.1,3.21389001]
[1725037382388,0.00609001,2466.5,2466.4,0.40546]
[1725037382885,0.00609001,2466.5,2466.4,7.66766]
[1725037383277,0.40528,2467.6,2467.2,0.40533]
[1725037383579,3.6976,2467.8,2467.7,0.40525]
[1725037383780,0.4898,2467.8,2467.5,3.2078]
[1725037383971,0.4898,2467.8,2467.3,6.1149]
[1725037384166,3.2078,2468.6,2467.5,3.2078]
[1725037384368,0.00609001,2467.8,2467.3,1.45099001]
[1725037385184,4.72562994,2467.7,2467.3,0.00609001]
[1725037385481,3.6976,2467.6,2467.3,0.00609001]
[1725037386077,0.4053,2467.4,2467.3,0.00609001]
[1725037386273,13.89506385,2467.5,2466.6,0.4801]
[1725037386472,4.68376385,2467.4,2466.8,3.2078]
[1725037386672,0.4885,2467.5,2466.8,3.2078]
[1725037387179,0.40536,2467.1,2466.8,3.2078]
[1725037387379,0.9738,2467.0,2466.9,0.00609001]
[1725037387575,8.91751088,2467.0,2466.9,0.00609001]
[1725037387783,19.17109871,2467.0,2466.9,0.00609001]
[1725037387980,19.17109871,2467.0,2466.3,3.2078]
[1725037387981,19.77917871,2467.0,2466.3,3.2078]
[1725037388176,3.2078,2466.7,2466.3,3.2078]
[1725037388375,0.464,2466.9,2465.8,0.4984]
[1725037388376,3.2078,2466.5,2465.8,0.4984]
[1725037388577,0.89077,2466.4,2465.8,0.4984]
[1725037388883,0.00609001,2466.3,2465.9,0.00609001]
[1725037389083,0.00609001,2466.3,2466.0,0.40553]
[1725037389285,0.00609001,2466.3,2466.0,0.4719]
[1725037389884,0.00609001,2466.3,2466.0,0.87743]
[1725037390181,0.00609001,2466.3,2466.1,0.4624]
[1725037390797,0.00609001,2466.3,2466.2,0.4055]
[1725037390984,0.00609001,2466.3,2466.1,0.4624]
[1725037391186,0.00609001,2466.3,2466.1,0.8679]
[1725037391390,0.00609001,2466.3,2466.2,0.4055]
[1725037391682,0.00609001,2466.3,2466.1,0.86791]
[1725037392089,0.00609001,2466.3,2466.2,0.4055]
[1725037392591,0.00609001,2466.3,2466.1,0.4624]
[1725037392592,0.00609001,2466.3,2466.1,0.86791]
[1725037392885,0.00609001,2466.3,2466.2,0.4055]
[1725037393586,0.00609001,2466.3,2466.1,0.86791]
[1725037393793,0.00609001,2466.3,2466.2,0.4055]
[1725037394288,0.00609001,2466.3,2466.1,0.8679]
[1725037394685,0.00609001,2466.3,2466.2,0.4055]
[1725037395286,0.00609001,2466.3,2466.2,4.4599]
[1725037395685,7.3348,2467.2,2466.2,10.0544]
[1725037395890,0.4583,2466.8,2466.4,4.67]
[1725037396087,0.4731,2466.7,2466.1,8.3402]
[1725037396284,0.40549,2466.3,2466.1,3.6702]
[1725037396486,0.4583,2466.2,2466.1,3.2078]
[1725037396690,0.4583,2466.2,2465.9,0.00609001]
[1725037396889,0.4731,2466.1,2465.9,0.00609001]
[1725037397291,0.87861,2466.1,2465.9,0.00609001]
[1725037397482,0.4731,2466.1,2465.9,0.00609001]
[1725037397697,4.3836466,2466.0,2465.9,0.00609001]
[1725037398082,8.4388466,2466.0,2465.9,0.00609001]
[1725037398281,8.8443766,2466.0,2465.9,0.00609001]
[1725037398483,8.4388466,2466.0,2465.9,0.00609001]
[1725037398890,0.4583,2466.2,2466.1,0.40551]
[1725037399088,0.4583,2466.2,2466.0,0.4686]
[1725037399294,0.4583,2466.2,2466.1,0.40551]
[1725037399587,0.4583,2466.2,2466.0,0.87412]
[1725037399995,0.4583,2466.2,2466.1,0.40551]
[1725037400193,0.4583,2466.2,2466.0,0.87412]
[1725037400388,0.4583,2466.2,2466.1,0.40551]
[1725037401490,0.45149001,2466.4,2466.3,0.40548]
[1725037402192,0.45149001,2466.4,2466.0,0.4686]
[1725037402400,0.85696001,2466.4,2466.1,0.40551]
[1725037402695,0.40549,2466.3,2466.0,0.87413]
[1725037403100,0.4055,2466.2,2466.0,0.4686]
[1725037403397,0.40549,2466.3,2466.0,0.87413]
[1725037403591,0.4055,2466.2,2466.0,0.87413]
[1725037403791,0.4055,2466.2,2466.0,0.4686]
[1725037404292,0.4055,2466.2,2466.0,0.87413]
[1725037404691,4.67298001,2466.4,2466.0,0.4686]
[1725037404891,4.67298001,2466.4,2465.9,3.61944001]
[1725037405096,0.40553,2466.1,2465.9,3.21389001]
[1725037405302,0.40551,2466.2,2465.9,3.61944001]
[1725037405490,0.4681,2466.3,2465.9,3.21389001]
[1725037405491,0.40552,2466.1,2465.9,3.21389001]
[1725037405690,0.40553,2466.0,2465.9,3.21389001]
[1725037405895,0.40553,2466.0,2465.9,0.00609001]
[1725037406087,0.88572,2466.1,2465.9,0.00609001]
[1725037406297,0.4802,2466.1,2465.9,0.41163001]
[1725037406599,0.88572,2466.1,2465.9,0.41163001]
[1725037406805,0.4802,2466.1,2465.9,0.41163001]
[1725037407103,0.4055,2466.2,2466.0,0.40553]
[1725037407308,4.10799001,2466.4,2465.9,0.00609001]
[1725037407502,0.40549,2466.3,2466.0,0.40553]
[1725037407692,4.10799001,2466.4,2465.9,0.00609001]
[1725037407998,4.51347001,2466.4,2466.1,0.40551]
[1725037408192,4.51347001,2466.4,2466.0,0.40552]
[1725037408193,0.40548,2466.3,2466.0,0.40552]
[1725037408388,4.10799001,2466.4,2466.1,0.40551]
[1725037408584,4.10799001,2466.4,2465.9,0.00609001]
[1725037408585,3.65929001,2466.4,2465.9,0.00609001]
[1725037408785,3.65929001,2466.4,2466.3,0.40548]
[1725037408996,3.65929001,2466.4,2466.2,0.40549]
[1725037409391,3.65929001,2466.4,2465.9,0.00609001]
[1725037409590,3.65929001,2466.4,2466.2,0.40549]
[1725037410303,4.06476001,2466.4,2466.1,0.40551]
[1725037410599,0.4055,2466.2,2465.9,0.41162001]
[1725037410803,0.4387,2466.3,2465.9,0.41163001]
[1725037410993,0.40553,2466.1,2465.9,0.00609001]
[1725037411393,0.40553,2466.1,2465.9,0.41163001]
[1725037411802,0.40551,2466.2,2465.9,0.41163001]
[1725037412002,0.40553,2466.0,2465.9,0.00609001]
[1725037412295,1.41936,2466.0,2465.9,0.00609001]
[1725037412497,5.47456,2466.0,2465.9,0.00609001]
[1725037413203,4.46073,2466.0,2465.9,0.00609001]
[1725037413505,3.2078,2466.1,2465.9,0.00609001]
[1725037413804,3.2078,2466.1,2466.0,0.40553]
[1725037413986,3.2078,2466.1,2466.0,1.30893]
[1725037414187,3.2078,2466.1,2466.0,1.74383]
[1725037415692,0.45149001,2466.4,2466.3,0.40548]
[1725037416195,0.45149001,2466.4,2466.2,0.40549]
[1725037416196,0.85696001,2466.4,2466.2,0.40549]
[1725037416408,0.40551,2466.1,2466.0,0.9034]
[1725037416600,0.40551,2466.2,2466.0,1.30893]
[1725037416901,0.40553,2466.0,2465.9,0.00609001]
[1725037417095,4.22152,2466.3,2465.9,0.41164001]
[1725037417096,0.85092,2466.1,2465.9,0.41164001]
[1725037417299,0.4454,2466.1,2465.9,0.00609001]
[1725037417492,0.40553,2466.0,2465.9,0.00609001]
[1725037418006,0.85093,2466.1,2465.9,0.41164001]
[1725037418300,0.40553,2466.0,2465.9,0.00609001]
[1725037418501,0.4454,2466.1,2465.9,0.00609001]
[1725037418703,3.61329,2466.3,2466.1,0.40551]
[1725037418898,0.4055,2466.2,2466.0,0.87693]
[1725037419503,3.2078,2466.3,2466.0,0.4714]
[1725037419504,0.40551,2466.1,2466.0,0.4714]
[1725037419709,0.4594,2466.1,2465.9,0.00609001]
[1725037419899,0.86492,2466.1,2465.9,0.41163001]
[1725037420215,0.4594,2466.1,2465.9,0.41163001]
[1725037420707,0.4594,2466.1,2465.9,0.00609001]
[1725037421203,0.4594,2466.1,2465.9,0.41162001]
[1725037421603,0.40553,2466.0,2465.9,0.00609001]
[1725037421910,0.86492,2466.1,2465.9,0.41164001]
[1725037422898,0.4594,2466.1,2465.9,0.41164001]
[1725037423108,0.86492,2466.1,2465.9,0.41164001]
[1725037423308,3.2078,2466.3,2466.2,0.4055]
[1725037423795,3.2078,2466.3,2466.2,4.4599]
[1725037423999,0.4055,2466.2,2466.1,1.50897814]
[1725037424205,0.40551,2466.1,2466.0,1.51127814]
[1725037424393,0.84461,2466.1,2466.0,1.05727814]
[1725037424592,0.40553,2466.0,2465.9,1.06336815]
[1725037424902,0.88913,2466.0,2465.9,0.00609001]
[1725037426512,22.88050128,2466.0,2465.7,1.05727814]
[1725037426812,0.4056,2465.6,2465.3,1.05727814]
[1725037427004,0.40563,2465.4,2465.3,1.05727814]
[1725037427427,1.16239148,2465.5,2465.3,1.05727814]
[1725037427428,1.56801148,2465.5,2465.3,1.05727814]
[1725037427605,1.16239148,2465.5,2465.3,1.46291814]
[1725037428111,1.16239148,2465.5,2465.4,1.05727814]
[1725037428305,0.67879148,2465.5,2465.4,1.05727814]
[1725037428497,0.67879148,2465.5,2465.3,1.46292814]
[1725037428905,1.08440148,2465.5,2465.3,1.05727814]
[1725037429204,0.40563,2465.4,2465.3,1.05727814]
[1725037429803,0.67879148,2465.5,2465.3,1.05727814]
[1725037430207,0.67879148,2465.5,2465.2,1.59200722]
[1725037430208,1.08441148,2465.5,2465.4,1.05727814]
[1725037430397,1.08441148,2465.5,2465.3,1.05727814]
[1725037430398,0.67879148,2465.5,2465.3,1.05727814]
[1725037430713,0.67879148,2465.5,2465.4,1.05727814]
[1725037431015,0.67879148,2465.5,2465.4,1.46290814]
[1725037431211,0.67879148,2465.5,2465.4,3.49174135]
[1725037431406,0.20219148,2465.5,2465.4,3.61475042]
[1725037431610,4.07448,2465.7,2465.4,4.02038042]
[1725037431807,4.07448,2465.7,2465.6,1.06118248]
[1725037432117,12.66417263,2465.7,2465.6,1.06118248]
[1725037432610,7.7249,2465.7,2465.6,1.06118248]
[1725037433013,8.13048,2465.7,2465.6,1.06118248]
[1725037433307,3.2078,2465.7,2465.6,4.02032408]
[1725037433606,3.2078,2465.7,2465.6,2.02880687]
[1725037433814,3.2078,2465.7,2465.6,4.02032408]
[1725037434112,3.2078,2465.7,2465.6,3.61472408]
[1725037434411,3.2078,2465.7,2465.6,4.02032408]
[1725037435111,7.66938,2465.7,2465.6,3.61472408]
[1725037435513,7.66938,2465.7,2465.6,2.02880687]
[1725037436012,7.66938,2465.7,2465.6,3.61472408]
[1725037436013,8.16048,2465.7,2465.6,3.61472408]
[1725037436212,8.16048,2465.7,2465.6,2.02880687]
[1725037437208,8.16048,2465.7,2465.6,3.09040857]
[1725037437610,4.95268,2465.7,2465.6,3.09040857]
[1725037437812,4.95268,2465.7,2465.6,2.02880687]
[1725037438113,10.63240025,2465.7,2465.6,3.09044188]
[1725037438306,10.63240025,2465.7,2465.6,1.06163501]
[1725037438708,9.61844025,2465.7,2465.6,1.06163501]
[1725037438908,10.63240025,2465.7,2465.6,1.06163501]
[1725037439822,13.84020025,2465.7,2465.6,1.06163501]
[1725037440914,12.82624025,2465.7,2465.6,1.06163501]
[1725037441217,8.27914025,2465.7,2465.6,1.06163501]
[1725037441417,13.34910025,2465.7,2465.6,3.09045569]
[1725037441719,13.34910025,2465.7,2465.6,1.06163501]
[1725037441911,0.4056,2465.6,2465.5,1.06163501]
[1725037442118,8.9756,2465.6,2465.5,1.06163501]
[1725037442308,1.41977,2465.3,2465.2,0.00609001]
[1725037442510,6.7078,2465.3,2464.8,1.58591721]
[1725037442729,4.2221,2464.9,2464.4,1.06227661]
[1725037443010,4.2221,2464.9,2464.3,1.06227661]
[1725037443011,48.40433985,2464.8,2464.3,1.06227661]
[1725037443313,4.1948,2465.2,2464.8,0.40573]
[1725037443510,4.81228792,2465.2,2464.9,0.5001]
[1725037443717,4.40661792,2465.2,2464.9,0.5001]
[1725037443915,4.29507255,2465.1,2464.9,0.5001]
[1725037444314,0.40569,2465.0,2464.9,0.5001]
[1725037445510,4.29507255,2465.1,2464.9,0.5001]
[1725037445718,4.29507255,2465.1,2464.9,0.9058]
[1725037445920,4.29507255,2465.1,2464.9,1.403]
[1725037446514,4.70076255,2465.1,2464.9,0.9973]
[1725037446717,0.40571,2464.9,2464.8,0.49609001]
[1725037447024,0.40578,2464.5,2464.3,1.06227661]
[1725037447220,0.40581,2464.3,2464.2,0.4687]
[1725037447416,0.40583,2464.2,2464.0,1.06227661]
[1725037447713,0.40583,2464.2,2463.9,2.01827661]
[1725037447714,4.41870165,2464.1,2463.9,2.01827661]
[1725037448224,4.82454165,2464.1,2463.9,0.956]
[1725037448518,4.41870165,2464.1,2463.9,0.956]
[1725037448718,0.40586,2464.0,2463.9,0.956]
[1725037448927,0.40588,2463.9,2463.8,0.00609001]
[1725037449118,1.08332622,2463.9,2463.8,0.00609001]
[1725037450125,5.14172622,2463.9,2463.8,0.00609001]
[1725037450825,9.81900715,2463.9,2463.8,0.00609001]
[1725037451524,13.02680715,2463.9,2463.8,0.00609001]
[1725037452057,13.02680715,2463.9,2463.1,4.158]
[1725037452058,19.07852715,2463.9,2462.8,1.59341492]
[1725037452331,0.40601,2463.1,2463.0,0.4911]
[1725037452625,8.77756182,2463.1,2462.8,0.4951]
[1725037452814,4.31154182,2463.1,2462.8,0.9862]
[1725037453015,4.31154182,2463.1,2462.8,1.39226]
[1725037453222,4.31154182,2463.1,2462.8,0.9862]
[1725037454526,0.40604,2462.9,2462.8,0.9862]
[1725037454823,5.06552227,2462.9,2462.7,0.4636]
[1725037455027,5.06552227,2462.9,2462.5,1.4089]
[1725037455220,0.40606,2462.8,2462.5,1.4904]
[1725037455425,5.06552227,2462.9,2462.5,1.8965]
[1725037455826,5.06551227,2462.9,2462.5,1.8965]
[1725037456527,4.65947227,2462.9,2462.6,0.40609]
[1725037456725,4.65947227,2462.9,2462.5,1.8965]
[1725037456726,5.06551227,2462.9,2462.5,1.8965]
[1725037457126,3.5,2462.6,2462.5,0.5077]
[1725037457326,6.95143924,2462.6,2462.5,0.5077]
[1725037457523,3.5,2463.0,2462.5,4.5685]
[1725037457828,4.5972955,2463.0,2462.9,0.40604]
[1725037458814,4.5972955,2463.0,2462.8,0.40605]
[1725037459020,4.5972955,2463.0,2462.8,1.44055]
[1725037459021,5.0033155,2463.0,2462.8,1.44055]
[1725037459218,8.0972955,2463.0,2462.8,1.0345]
[1725037459419,8.0972955,2463.0,2462.8,1.44056]
[1725037459924,8.0972955,2463.0,2462.8,1.0345]
[1725037460429,8.0972955,2463.0,2462.8,1.44056]
[1725037460727,3.2078,2463.1,2463.0,0.40602]
[1725037460915,3.2078,2463.1,2462.9,0.40603]
[1725037461116,3.61381,2463.1,2463.0,0.4847]
[1725037461315,3.2078,2463.1,2463.0,0.89072]
[1725037461527,0.00609001,2463.2,2463.1,0.40601]
[1725037462033,6.7078,2463.6,2463.1,0.40601]
[1725037462034,6.7078,2463.6,2463.3,0.40597]
[1725037462239,6.7078,2463.6,2463.4,0.40596]
[1725037462424,4.53331462,2463.5,2463.4,0.40596]
[1725037462618,4.53331462,2463.5,2463.3,0.40596]
[1725037462829,4.53331462,2463.5,2463.3,0.40597]
[1725037463026,4.53331462,2463.5,2463.4,0.9752]
[1725037463832,4.53331462,2463.5,2463.4,1.38116]
[1725037464621,4.53331462,2463.5,2463.4,0.9752]
[1725037465031,0.40596,2463.4,2463.2,0.00609001]
[1725037465425,8.03331462,2463.5,2463.2,0.00609001]
[1725037465623,8.03331462,2463.5,2463.2,0.41208001]
[1725037466037,8.03331462,2463.5,2463.2,0.41207001]
[1725037466240,8.03331462,2463.5,2463.4,0.40596]
[1725037466928,3.21389001,2463.6,2463.5,0.40594]
[1725037467327,3.21389001,2463.6,2463.2,0.00609001]
[1725037467526,3.61982001,2463.6,2463.3,0.40597]
[1725037467737,3.21389001,2463.6,2463.4,0.40595]
[1725037467925,0.00609001,2463.6,2463.5,1.41924]
[1725037468238,0.00609001,2463.6,2463.5,1.0133]
[1725037468530,0.41202001,2463.6,2463.5,1.0133]
[1725037468734,0.00609001,2463.6,2463.5,1.0133]
[1725037469337,0.00609001,2463.6,2463.5,1.41924]
[1725037470926,3.5,2464.1,2464.0,0.40586]
[1725037471325,7.5584,2464.1,2464.0,0.40586]
[1725037471631,8.09484211,2464.1,2464.0,0.40586]
[1725037471835,3.5,2464.1,2464.0,0.40586]
[1725037472036,3.90585,2464.1,2463.9,0.40586]
[1725037472537,0.40589,2463.8,2463.6,4.12212]
[1725037472728,4.27235964,2464.0,2463.6,3.7162]
[1725037472729,0.40591,2463.7,2463.6,3.7162]
[1725037472930,3.90591,2463.7,2463.6,3.7162]
[1725037473226,3.90591,2463.7,2463.3,7.77176]
[1725037473227,0.40594,2463.5,2463.3,7.77176]
[1725037473533,3.5,2463.5,2463.3,3.61376]
[1725037473736,3.5,2463.5,2463.4,0.40596]